bitfinex-derivatives/quotes_SOLF0:USTF0_20250808
["timestamp","ask_amount","ask_price","bid_price","bid_amount"]
[1754678780047,2.96,177.47,177.45,9.47679863]
[1754678780243,3.00290534,177.48,177.45,6.51679863]
[1754678780447,2.96,177.47,177.45,9.47679863]
[1754678780650,2.96,177.47,177.45,15.11119863]
[1754678780851,2.96,177.47,177.45,8.5944]
[1754678781244,2.96,177.46,177.45,8.5944]
[1754678781548,9.14104634,177.46,177.4,2.96]
[1754678781756,9.14104634,177.46,177.39,148.87754998]
[1754678781757,2.96,177.44,177.41,2.96]
[1754678781956,6.22395168,177.48,177.45,8.5942]
[1754678782254,2.96,177.46,177.41,6.51679863]
[1754678782443,2.96,177.46,177.41,9.47679863]
[1754678782759,2.96,177.46,177.4,6.51679863]
[1754678782950,2.96,177.46,177.42,2.96]
[1754678783348,2.96,177.46,177.4,9.47679863]
[1754678783555,2.99561292,177.46,177.4,2.96]
[1754678783754,2.99561292,177.46,177.41,6.51679863]
[1754678783950,2.96,177.45,177.43,2.96]
[1754678784152,0.03561292,177.46,177.44,2.96]
[1754678784153,1.292e-05,177.46,177.44,2.96]
[1754678784460,9.14104634,177.53,177.46,2.96]
[1754678784653,2.96,177.52,177.5,9.47679863]
[1754678784954,2.96,177.51,177.5,9.47679863]
[1754678785255,2.96,177.52,177.48,6.51679863]
[1754678785454,2.96,177.52,177.48,9.47679863]
[1754678785652,6.18104634,177.52,177.45,2.96]
[1754678785854,2.96,177.5,177.47,5.6336]
[1754678786152,5.6323,177.52,177.47,15.11039863]
[1754678786153,2.96,177.48,177.47,15.11039863]
[1754678786356,2.96,177.49,177.47,9.47679863]
[1754678786657,2.96,177.5,177.48,8.5935]
[1754678786853,2.96,177.48,177.47,6.51679863]
[1754678788558,2.96,177.5,177.44,141.38]
[1754678788853,2.96,177.49,177.47,2.96]
[1754678789057,2.96,177.51,177.49,2.96]
[1754678789358,0.03605164,177.5,177.49,2.96]
[1754678789657,9.14104634,177.56,177.54,2.96]
[1754678789853,2.96,177.56,177.55,2.96]
[1754678790157,6.18104634,177.58,177.55,2.96]
[1754678790358,2.96,177.57,177.55,2.96]
[1754678790652,2.96,177.56,177.5,15.10959863]
[1754678790859,2.96,177.54,177.47,141.4]
[1754678791050,2.96,177.53,177.47,141.4]
[1754678791257,6.18104634,177.52,177.51,0.03693449]
[1754678791553,9.14104634,177.52,177.51,0.03693449]
[1754678791859,2.96,177.52,177.51,0.03693449]
[1754678792459,8.5922,177.52,177.51,0.03693449]
[1754678792952,5.6333,177.49,177.46,2.96]
[1754678793158,2.96,177.47,177.46,2.96]
[1754678793949,2.96,177.5,177.47,5.6338]
[1754678794146,6.18104634,177.52,177.45,6.51679863]
[1754678794452,2.96,177.5,177.48,2.96]
[1754678794648,6.18104634,177.53,177.48,2.96]
[1754678794848,6.18104634,177.53,177.42,141.38]
[1754678794849,9.14104634,177.55,177.51,6.51679863]
[1754678795051,9.14104634,177.55,177.53,2.96]
[1754678795254,2.96,177.55,177.54,2.96]
[1754678795654,6.18104634,177.56,177.54,2.96]
[1754678795860,2.96,177.55,177.53,2.96]
[1754678796062,3.04,177.54,177.51,9.59679863]
[1754678796352,3.04,177.53,177.52,5.6321]
[1754678796556,3.04,177.53,177.51,9.59679863]
[1754678797058,3.04,177.53,177.52,5.6322]
[1754678797272,3.04,177.53,177.51,9.59679863]
[1754678797465,3.04,177.53,177.51,8.7125]
[1754678797651,3.04,177.53,177.51,15.22929863]
[1754678797855,3.04,177.53,177.51,9.59679863]
[1754678798056,6.18104634,177.55,177.51,6.51679863]
[1754678798256,660.80707234,177.72,177.54,3.08]
[1754678798257,6.18104634,177.56,177.54,3.08]
[1754678798465,6.18104634,177.56,177.55,9.59679863]
[1754678798663,6.18104634,177.57,177.55,9.59679863]
[1754678798960,9.22104634,177.58,177.55,6.51679863]
[1754678799158,6.18104634,177.59,177.58,3.08]
[1754678799368,3.04,177.58,177.57,6.51679863]
[1754678800360,6.15823174,177.58,177.5,141.38]
[1754678800565,3.04,177.55,177.52,3.08]
[1754678800763,6.15823174,177.55,177.48,3.08]
[1754678800964,9.19823174,177.53,177.47,378.48]
[1754678801164,6.15823174,177.53,177.47,378.48]
[1754678801364,9.19823174,177.53,177.48,9.59679863]
[1754678801560,6.15823174,177.53,177.49,3.08]
[1754678801763,6.15823174,177.53,177.49,8.7129]
[1754678801963,3.04,177.51,177.49,8.7129]
[1754678802358,3.04,177.5,177.49,8.7129]
[1754678803465,3.04,177.5,177.48,5.6334]
[1754678803659,6.15823174,177.52,177.47,384.99679863]
[1754678803965,3.04,177.5,177.47,9.59679863]
[1754678804266,3.04,177.5,177.48,3.08]
[1754678804566,3.04,177.49,177.48,3.08]
[1754678805364,6.15823174,177.52,177.49,3.08]
[1754678805566,3.04,177.5,177.48,3.08]
[1754678805767,6.15823174,177.52,177.48,3.08]
[1754678805966,3.04,177.49,177.47,3.08]
[1754678806564,3.04,177.49,177.47,8.7136]
[1754678806764,3.04,177.51,177.48,3.08]
[1754678806960,3.04,177.51,177.49,3.08]
[1754678807368,3.04,177.5,177.49,8.7132]
[1754678807670,3.04,177.5,177.49,3.08]
[1754678807962,6.15823174,177.52,177.49,3.08]
[1754678808170,6.15823174,177.52,177.46,6.51679863]
[1754678808362,3.04,177.51,177.49,5.633]
[1754678808559,3.04,177.51,177.49,8.713]
[1754678809064,3.04,177.51,177.5,3.08]
[1754678809269,6.15823174,177.53,177.5,9.59679863]
[1754678809464,9.19823174,177.53,177.5,6.51679863]
[1754678809668,9.19823174,177.52,177.5,9.59679863]
[1754678809868,3.04,177.51,177.5,3.08]
[1754678810167,3.04,177.51,177.48,9.59679863]
[1754678810168,6.15823174,177.51,177.48,9.59679863]
[1754678810370,6.15823174,177.51,177.48,6.51679863]
[1754678810566,6.15823174,177.54,177.53,5.6319]
[1754678810769,6.15823174,177.56,177.54,3.08]
[1754678811070,6.15823174,177.57,177.56,3.08]
[1754678811271,6.15823174,177.58,177.57,8.7106]
[1754678811469,6.15823174,177.58,177.57,15.22739863]
[1754678811772,6.15823174,177.59,177.58,5.6303]
[1754678812069,6.15823174,177.59,177.58,8.7103]
[1754678812762,6.15823174,177.59,177.58,3.08]
[1754678812973,3.04,177.57,177.55,6.51679863]
[1754678813171,3.04,177.56,177.55,6.51679863]
[1754678813364,6.16268891,177.57,177.56,3.08]
[1754678814166,6.16268891,177.58,177.56,3.08]
[1754678814367,6.16268891,177.57,177.56,3.08]
[1754678815575,6.16268891,177.57,177.56,8.711]
[1754678817275,6.17638115,177.59,177.57,3.08]
[1754678817475,12.19787954,177.62,177.59,3.08]
[1754678817667,12.19787954,177.62,177.6,9.59679863]
[1754678818470,3.04,177.62,177.6,9.59679863]
[1754678818669,3.04,177.61,177.6,9.59679863]
[1754678818870,3.04,177.61,177.6,15.22639863]
[1754678820269,9.15787954,177.64,177.6,6.51679863]
[1754678820470,9.15787954,177.66,177.63,6.51679863]
[1754678820664,3.04,177.66,177.65,3.08]
[1754678820868,3.04,177.66,177.65,9.59679863]
[1754678821064,3.04,177.66,177.65,6.51679863]
[1754678821465,3.04,177.66,177.65,9.59679863]
[1754678821667,9.15787954,177.68,177.66,3.08]
[1754678821867,3.04,177.69,177.68,8.7072]
[1754678822174,9.15787954,177.71,177.68,8.7072]
[1754678822378,3.04,177.69,177.68,8.7072]
[1754678822782,3.04,177.72,177.67,6.51679863]
[1754678822978,9.15787954,177.74,177.73,3.08]
[1754678823279,3.04,177.76,177.74,3.08]
[1754678823476,3.04,177.76,177.75,6.51679863]
[1754678826683,5.6258,177.73,177.69,6.51679863]
[1754678826977,3.19,177.77,177.71,6.51679863]
[1754678827173,3.19,177.77,177.74,6.51679863]
[1754678827376,3.19,177.74,177.7,9.48679863]
[1754678827574,3.19,177.74,177.7,6.51679863]
[1754678827777,3.19,177.72,177.7,6.51679863]
[1754678827979,3.19,177.78,177.7,6.51679863]
[1754678828375,3.19,177.71,177.69,9.48679863]
[1754678829175,3.19,177.78,177.7,2.97]
[1754678829377,3.19,177.78,177.67,6.51679863]
[1754678829378,6.51679863,177.77,177.67,6.51679863]
[1754678829576,3.19,177.76,177.67,6.51679863]
[1754678829772,3.19,177.74,177.64,6.51679863]
[1754678830072,3.19,177.67,177.65,2.97]
[1754678830273,3.19,177.72,177.62,9.48679863]
[1754678830580,3.19,177.67,177.65,2.97]
[1754678830780,3.19,177.67,177.62,6.51679863]
[1754678830781,3.19,177.64,177.63,2.97]
[1754678831575,3.19,177.66,177.63,2.97]
[1754678831775,3.19,177.65,177.63,2.97]
[1754678831975,3.19,177.65,177.62,6.51679863]
[1754678832179,3.19,177.64,177.62,9.48679863]
[1754678832377,3.19,177.64,177.62,6.51679863]
[1754678832577,6.51679863,177.71,177.63,2.97]
[1754678832777,3.19,177.7,177.63,2.97]
[1754678833684,3.19,177.67,177.64,2.97]
[1754678833877,3.19,177.66,177.64,2.97]
[1754678834077,5.627,177.69,177.65,2.97]
[1754678834285,3.19,177.68,177.65,2.97]
[1754678834483,3.19,177.67,177.66,2.97]
[1754678835180,3.19,177.67,177.65,8.5981]
[1754678835375,3.19,177.67,177.66,2.97]
[1754678836082,3.19,177.73,177.66,9.48679863]
[1754678836578,5.6264,177.71,177.66,15.11439863]
[1754678836779,3.19,177.7,177.67,2.97]
[1754678836980,0.03573179,177.71,177.7,2.97]
[1754678837588,0.03573179,177.71,177.7,15.11329863]
[1754678838083,3.19,177.74,177.71,2.97]
[1754678838285,3.19,177.74,177.73,2.97]
[1754678838787,3.19,177.81,177.73,2.97]
[1754678838983,3.19,177.81,177.75,6.51679863]
[1754678839281,5.6236,177.8,177.75,12.18265375]
[1754678839484,3.19,177.78,177.76,2.97]
[1754678839881,3.19,177.8,177.77,6.51679863]
[1754678840187,3.19,177.8,177.78,2.97]
[1754678840379,125.36989453,177.83,177.78,2.97]
[1754678840584,3.19,177.8,177.77,6.51679863]
[1754678841186,3.19,177.81,177.77,0.0420866]
[1754678841590,5.624,177.78,177.77,0.0420866]
[1754678841782,8.814,177.78,177.77,0.0420866]
[1754678842291,3.19,177.78,177.69,9.48679863]
[1754678842583,3.19,177.78,177.72,2.97]
[1754678842786,3.19,177.78,177.73,6.51679863]
[1754678843088,3.19,177.81,177.74,2.97]
[1754678843275,3.19,177.78,177.73,6.51679863]
[1754678843477,3.19,177.78,177.71,9.48679863]
[1754678843684,5.6251,177.75,177.71,15.11269863]
[1754678843889,3.19,177.73,177.71,9.48679863]
[1754678844389,3.19,177.72,177.71,5.6261]
[1754678844781,3.19,177.72,177.7,5.6265]
[1754678844982,3.19,177.72,177.7,8.5965]
[1754678845280,5.6257,177.73,177.69,5.6268]
[1754678845479,3.19,177.71,177.69,5.6268]
[1754678845685,3.19,177.7,177.68,9.48679863]
[1754678845888,3.19,177.7,177.68,15.11369863]
[1754678846282,3.19,177.7,177.68,8.5969]
[1754678846785,3.19,177.7,177.68,5.6269]
[1754678846990,3.19,177.7,177.69,2.97]
[1754678847381,3.2303005,177.71,177.68,5.6269]
[1754678847583,3.2303005,177.71,177.69,2.97]
[1754678847791,3.19,177.7,177.69,2.97]
[1754678847992,3.19,177.7,177.65,2.97]
[1754678848193,3.19,177.7,177.63,9.48679863]
[1754678848585,5.627,177.69,177.65,5.6281]
[1754678848791,3.19,177.67,177.65,8.5981]
[1754678848996,3.22970594,177.68,177.66,2.97]
[1754678849292,3.22970594,177.68,177.67,2.97]
[1754678849688,3.22970594,177.68,177.65,15.11479863]
[1754678849882,3.22970594,177.68,177.66,2.97]
[1754678850291,0.03970594,177.68,177.65,6.51679863]
[1754678850484,3.19,177.67,177.66,2.97]
[1754678850796,3.22970594,177.68,177.66,2.97]
[1754678851683,3.19,177.67,177.65,6.51679863]
[1754678851887,3.19,177.66,177.65,9.48679863]
[1754678852083,3.22970594,177.68,177.66,2.97]
[1754678852289,3.19,177.67,177.66,2.97]
[1754678852992,0.03970594,177.68,177.67,2.97]
[1754678853188,3.19,177.67,177.65,9.48679863]
[1754678853391,3.19,177.67,177.64,8.5983]
[1754678853895,3.19,177.66,177.64,8.5983]
[1754678854483,3.19,177.66,177.65,5.6281]
[1754678854689,3.19,177.67,177.66,2.97]
[1754678855194,0.03970594,177.68,177.64,5.6283]
[1754678855395,3.19,177.66,177.65,2.97]
[1754678855595,3.22970594,177.68,177.63,6.51679863]
[1754678855790,3.22970594,177.68,177.66,2.97]
[1754678856289,0.03970594,177.68,177.65,6.51679863]
[1754678856489,0.03970594,177.68,177.62,141.6]
[1754678856490,0.03970594,177.68,177.67,9.72679863]
[1754678856887,0.03970594,177.68,177.67,15.35429863]
[1754678858297,3.23,177.74,177.68,3.21]
[1754678858597,9.15787954,177.75,177.72,3.21]
[1754678858598,3.23,177.75,177.72,3.21]
[1754678858802,3.23,177.74,177.72,8.8356]
[1754678859397,9.15787954,177.75,177.72,8.8356]
[1754678859597,3.23,177.74,177.71,6.55906867]
[1754678860097,3.23,177.74,177.71,0.04227004]
[1754678860297,12.38787954,177.74,177.71,0.04227004]
[1754678860499,3.23,177.72,177.71,0.04227004]
[1754678860899,3.23,177.72,177.71,3.25227004]
[1754678861198,9.15787954,177.74,177.72,3.21]
[1754678861400,3.23,177.73,177.71,6.55906867]
[1754678861901,9.15787954,177.76,177.71,6.55906867]
[1754678862099,3.23,177.75,177.73,6.51679863]
[1754678862298,9.15787954,177.78,177.74,6.51679863]
[1754678862497,9.15787954,177.78,177.77,6.51679863]
[1754678862700,3.23,177.79,177.78,5.624]
[1754678863101,9.15787954,177.8,177.77,6.51679863]
[1754678863304,9.15787954,177.81,177.77,0.03797327]
[1754678863500,9.15787954,177.81,177.8,6.51679863]
[1754678863702,9.15787954,177.81,177.8,8.52679863]
[1754678864109,12.38787954,177.81,177.8,6.51679863]
[1754678866800,9.15787954,177.82,177.8,12.14019863]
[1754678867005,12.38787954,177.82,177.8,2.01]
[1754678867207,12.38787954,177.82,177.81,6.51679863]
[1754678867403,12.38787954,177.82,177.77,141.31797327]
[1754678867404,12.38787954,177.82,177.79,6.51679863]
[1754678867602,3.23,177.81,177.79,6.51679863]
[1754678867903,3.23,177.8,177.78,5.6239]
[1754678868102,9.15787954,177.82,177.79,6.51679863]
[1754678868404,3.23,177.81,177.79,6.51679863]
[1754678868706,3.23,177.8,177.79,6.51679863]
[1754678868904,9.15787954,177.83,177.79,6.51679863]
[1754678868905,3.23,177.82,177.79,6.51679863]
[1754678869098,9.15787954,177.84,177.81,14.14959863]
[1754678869302,9.28391888,177.84,177.83,6.51679863]
[1754678870003,12.51391888,177.84,177.83,6.51679863]
[1754678870805,3.23,177.84,177.83,6.51679863]
[1754678871706,3.23,177.84,177.83,12.13919863]
[1754678871904,3.23,177.84,177.83,14.14919863]
[1754678872105,3.23,177.84,177.83,8.52679863]
[1754678872313,3.23,177.84,177.83,12.13919863]
[1754678873013,5.6215,177.86,177.81,2.04733961]
[1754678873309,5.6215,177.86,177.83,6.51679863]
[1754678873811,5.6215,177.86,177.81,0.03733961]
[1754678873812,3.23,177.84,177.81,0.03733961]
[1754678874409,3.23,177.84,177.81,6.55413824]
[1754678874913,3.23,177.82,177.81,0.03733961]
[1754678881007,8.8527,177.82,177.81,0.03733961]
[1754678882609,3.23,177.82,177.81,0.03733961]
[1754678883211,8.8527,177.82,177.81,0.03733961]
[1754678883602,3.23,177.82,177.81,0.03733961]
[1754678884215,8.8527,177.82,177.81,0.03733961]
[1754678885613,5.624,177.79,177.76,6.51679863]
[1754678885816,3.23,177.78,177.75,141.2]
[1754678886208,3.23,177.78,177.76,5.6246]
[1754678886513,3.14,177.8,177.72,6.51679863]
[1754678886712,3.14,177.78,177.71,2.05]
[1754678887215,3.14,177.75,177.73,5.6255]
[1754678887514,3.14,177.75,177.71,2.05]
[1754678887713,3.14,177.75,177.7,10.68823863]
[1754678887714,9.28391888,177.78,177.7,4.17144]
[1754678888012,6.51679863,177.8,177.7,4.17144]
[1754678888013,9.28391888,177.75,177.7,4.17144]
[1754678888216,5.6256,177.73,177.7,4.17144]
[1754678888415,3.14,177.72,177.7,6.22144]
[1754678888617,3.14,177.72,177.7,12.73823863]
[1754678889214,5.6258,177.73,177.7,12.73823863]
[1754678889514,9.28391888,177.76,177.7,4.17144]
[1754678889515,3.14,177.71,177.7,4.17144]
[1754678889814,9.31167346,177.71,177.7,4.09299748]
[1754678890017,14.93787346,177.71,177.7,4.09299748]
[1754678890414,8.7662,177.71,177.7,0.81299748]
[1754678892719,3.14,177.71,177.7,3.82299748]
[1754678892914,9.31111225,177.71,177.7,0.81299748]
[1754678893116,3.14,177.71,177.7,0.81299748]
[1754678893617,6.16438969,177.71,177.7,0.81299748]
[1754678893814,9.30438969,177.71,177.7,0.81299748]
[1754678894218,14.93058969,177.71,177.7,0.81299748]
[1754678894617,14.93046498,177.71,177.7,0.81299748]
[1754678894923,9.30414204,177.71,177.7,0.81299748]
[1754678895122,3.14,177.71,177.7,0.81299748]
[1754678896217,3.14,177.71,177.68,3.01]
[1754678896420,6.16485871,177.7,177.69,3.01]
[1754678897421,9.30485871,177.71,177.69,3.01]
[1754678897625,6.16485871,177.72,177.7,3.01]
[1754678897817,6.16485871,177.73,177.71,3.01]
[1754678898121,6.16485871,177.73,177.72,3.01]
[1754678898422,9.30485871,177.73,177.72,3.01]
[1754678898824,3.14,177.72,177.66,6.51679863]
[1754678899123,3.14,177.71,177.7,3.01]
[1754678899424,6.16304192,177.72,177.7,3.01]
[1754678899722,6.16304192,177.72,177.71,3.01]
[1754678899911,6.16304192,177.73,177.7,6.51679863]
[1754678900117,3.14,177.71,177.69,3.01]
[1754678900317,3.14,177.69,177.67,3.01]
[1754678900614,3.14,177.69,177.68,3.01]
[1754678901320,3.14,177.7,177.69,3.01]
[1754678901519,6.16304192,177.71,177.68,3.01]
[1754678901718,9.30304192,177.71,177.67,3.01]
[1754678901918,9.30304192,177.71,177.67,5.6274]
[1754678902120,9.30304192,177.71,177.69,3.01]
[1754678902620,9.30304192,177.71,177.69,3.98969626]
[1754678902827,9.30304192,177.71,177.7,3.01]
[1754678903324,3.14,177.7,177.69,6.99969626]
[1754678903720,6.16304192,177.71,177.69,3.98969626]
[1754678903917,9.30304192,177.71,177.7,3.01]
[1754678904827,6.16304192,177.72,177.7,3.01]
[1754678905021,6.16304192,177.73,177.71,3.98969626]
[1754678905220,9.30304192,177.73,177.72,3.01]
[1754678905419,6.16304192,177.73,177.71,6.99969626]
[1754678905625,9.30304192,177.72,177.71,6.99969626]
[1754678905924,3.14,177.72,177.71,6.99969626]
[1754678906319,6.16304192,177.73,177.72,3.01]
[1754678906515,9.30304192,177.73,177.72,3.01]
[1754678906721,3.14,177.72,177.71,3.98969626]
[1754678907526,3.14,177.72,177.71,6.99969626]
[1754678907729,6.16304192,177.74,177.72,3.01]
[1754678907926,9.30304192,177.74,177.73,6.99969626]
[1754678908324,9.30382157,177.74,177.73,6.99969626]
[1754678908522,9.30382157,177.74,177.73,3.98969626]
[1754678909126,3.14,177.74,177.73,3.98969626]
[1754678909522,3.14,177.74,177.73,6.99969626]
[1754678909721,6.16359154,177.74,177.73,12.62529626]
[1754678909918,6.16489713,177.76,177.74,3.01]
[1754678910124,9.28391888,177.78,177.76,3.01]
[1754678910125,3.14,177.78,177.76,3.01]
[1754678910318,3.14,177.78,177.75,3.98969626]
[1754678910630,12.42391888,177.79,177.77,6.99969626]
[1754678911019,9.28391888,177.79,177.77,6.99969626]
[1754678911223,3.14,177.78,177.77,3.98969626]
[1754678911826,3.14,177.78,177.75,6.99969626]
[1754678912030,9.28391888,177.78,177.73,3.01]
[1754678912231,12.42391888,177.77,177.73,3.98969626]
[1754678912426,3.14,177.76,177.73,3.98969626]
[1754678912626,3.14,177.77,177.73,3.98969626]
[1754678912833,3.14,177.75,177.73,3.98969626]
[1754678913131,3.14,177.72,177.7,8.6365]
[1754678913330,5.6258,177.73,177.7,8.6365]
[1754678913331,3.14,177.71,177.7,8.6365]
[1754678913532,3.14,177.74,177.7,3.01]
[1754678913734,3.14,177.73,177.71,6.99969626]
[1754678913928,3.14,177.73,177.71,12.62589626]
[1754678914128,3.14,177.72,177.71,6.99969626]
[1754678914529,3.14,177.74,177.72,3.01]
[1754678914832,3.14,177.74,177.73,3.01]
[1754678915333,8.7654,177.74,177.71,9.61579626]
[1754678915532,3.14,177.73,177.72,3.01]
[1754678916029,8.7654,177.74,177.73,3.05]
[1754678916627,8.7654,177.74,177.71,9.61579626]
[1754678916833,3.14,177.74,177.73,3.05]
[1754678917032,12.34391888,177.76,177.73,7.03969626]
[1754678917234,3.06,177.75,177.73,7.03969626]
[1754678917436,9.28391888,177.77,177.74,3.05]
[1754678917633,3.06,177.76,177.73,3.98969626]
[1754678917834,3.06,177.74,177.73,3.98969626]
[1754678918033,9.28391888,177.77,177.73,7.03969626]
[1754678918229,3.06,177.76,177.75,3.05]
[1754678918427,3.06,177.76,177.75,7.03969626]
[1754678918736,9.28391888,177.78,177.76,3.05]
[1754678918933,9.28391888,177.79,177.78,3.05]
[1754678919236,12.34391888,177.8,177.78,3.05]
[1754678919434,9.28391888,177.79,177.78,3.05]
[1754678919632,12.34391888,177.79,177.78,3.05]
[1754678919832,9.28391888,177.79,177.77,3.98969626]
[1754678920037,3.06,177.78,177.77,3.98969626]
[1754678920339,5.6245,177.77,177.75,3.98969626]
[1754678920539,3.06,177.76,177.75,3.98969626]
[1754678921038,3.06,177.76,177.75,7.03969626]
[1754678921239,3.06,177.77,177.76,3.05]
[1754678921439,3.06,177.76,177.75,3.98969626]
[1754678921843,3.06,177.75,177.73,12.66519626]
[1754678922039,3.06,177.74,177.73,12.66519626]
[1754678922235,3.06,177.75,177.73,3.98969626]
[1754678922539,3.06,177.74,177.73,3.98969626]
[1754678924438,12.34391888,177.74,177.73,3.98969626]
[1754678924630,12.34391888,177.74,177.71,15.1750736]
[1754678924840,3.06,177.73,177.72,3.05]
[1754678925831,9.28391888,177.74,177.73,5.6256]
[1754678926140,3.06,177.74,177.73,8.6756]
[1754678926438,12.34391888,177.75,177.74,3.05]
[1754678926638,3.06,177.75,177.74,3.05]
[1754678926941,9.28391888,177.76,177.75,3.05]
[1754678927141,12.34391888,177.76,177.75,3.05]
[1754678927438,3.06,177.76,177.75,3.05]
[1754678927638,12.343699,177.76,177.75,3.05]
[1754678928238,3.06,177.76,177.75,3.05]
[1754678928427,12.3453041,177.76,177.75,3.05]
[1754678928632,9.2853041,177.76,177.75,3.05]
[1754678928940,9.2853041,177.76,177.75,15.1739736]
[1754678929238,9.2853041,177.78,177.76,3.05]
[1754678929442,9.2853041,177.78,177.77,6.4990736]
[1754678929741,9.2853041,177.78,177.77,9.5490736]
[1754678930141,9.2853041,177.78,177.77,15.1733736]
[1754678930443,9.2853041,177.78,177.77,10.95480889]
[1754678930836,9.2853041,177.79,177.78,5.624]
[1754678931144,9.2853041,177.79,177.78,15.1730736]
[1754678931941,9.2853041,177.8,177.79,8.6737]
[1754678932143,9.2853041,177.8,177.79,15.1727736]
[1754678932841,12.3453041,177.8,177.79,15.1727736]
[1754678933038,9.2853041,177.8,177.79,15.1727736]
[1754678934237,12.3453041,177.8,177.79,15.1727736]
[1754678935339,9.2853041,177.81,177.79,15.1727736]
[1754678935643,12.3453041,177.81,177.8,3.05]
[1754678935939,3.06,177.8,177.79,15.1727736]
[1754678936839,12.3453041,177.81,177.79,12.1227736]
[1754678937047,12.3453041,177.8,177.79,6.4990736]
[1754678938248,12.3453041,177.8,177.79,15.1727736]
[1754678938448,3.06,177.8,177.79,15.1727736]
[1754678939044,3.06,177.8,177.79,9.5490736]
[1754678939942,3.06,177.8,177.77,5.6242]
[1754678940144,3.06,177.79,177.78,6.4990736]
[1754678940445,5.6243,177.78,177.74,15.1741736]
[1754678940645,3.06,177.76,177.72,9.5490736]
[1754678940947,5.6264,177.71,177.68,6.4990736]
[1754678941149,3.06,177.7,177.66,9.5490736]
[1754678941341,3.06,177.7,177.68,6.4990736]
[1754678941537,12.33464282,177.73,177.7,3.05]
[1754678941740,12.33464282,177.73,177.72,9.5490736]
[1754678941942,12.37059402,177.73,177.72,9.5490736]
[1754678942943,9.31059402,177.73,177.7,6.4990736]
[1754678943149,3.06,177.7,177.66,9.5490736]
[1754678943548,3.06,177.7,177.67,5.6274]
[1754678943849,3.06,177.71,177.69,3.05]
[1754678944051,0.04093252,177.7,177.68,6.4990736]
[1754678944253,0.04093252,177.7,177.69,5.6268]
[1754678944547,0.04093252,177.7,177.69,8.6768]
[1754678944748,9.27464282,177.72,177.69,3.05]
[1754678944949,12.33464282,177.73,177.72,3.05]
[1754678945143,9.27464282,177.73,177.72,3.05]
[1754678945349,9.27464282,177.75,177.72,3.05]
[1754678945542,9.27464282,177.75,177.74,9.5490736]
[1754678945738,9.27464282,177.76,177.75,3.05]
[1754678945949,3.06,177.79,177.76,3.05]
[1754678946149,3.06,177.79,177.78,9.7090736]
[1754678946351,18.07443383,177.83,177.79,5.6237]
[1754678946651,5.6226,177.83,177.8,9.7090736]
[1754678946842,3.17,177.81,177.8,9.7090736]
[1754678947038,3.17,177.81,177.8,6.4990736]
[1754678949948,3.17,177.81,177.8,9.7090736]
[1754678950145,5.6227,177.83,177.8,6.4990736]
[1754678950344,3.17,177.82,177.8,6.4990736]
[1754678950848,3.17,177.81,177.8,6.4990736]
[1754678951049,3.17,177.83,177.81,3.21]
[1754678951543,5.6222,177.84,177.81,3.21]
[1754678951845,8.7922,177.84,177.81,3.21]
[1754678952052,3.17,177.83,177.82,3.21]
[1754678953153,3.17,177.85,177.82,6.4990736]
[1754678953347,3.17,177.85,177.84,6.4990736]
[1754678953543,5.6209,177.88,177.84,15.3311736]
[1754678953748,3.17,177.87,177.86,6.4990736]
[1754678953949,3.17,177.88,177.86,6.4990736]
[1754678954148,3.17,177.87,177.86,6.4990736]
[1754678954855,3.17,177.87,177.86,9.7090736]
[1754678955044,3.17,177.9,177.87,3.21]